[Event "Titled Tuesday Blitz August 08 Early 2023"]
[White "arenal72"]
[Black "Talibov, Shiroghlan"]
[BlackFideId "13429078"]
[WhiteElo "2464"]
[BlackElo "2830"]
[Result "0-1"]
[Round "1"]
[TimeControl "180+1"]
[Date "2023.08.08"]
[WhiteClock "0:00:11"]
[BlackClock "0:00:47"]
[Board "65"]

1. e4 {[%clk 0:03:00]}  c5 {[%clk 0:02:59]} 2. Nf3 {[%clk 0:03:00]}  d6 {[%clk 0:02:56]} 3. d4 {[%clk 0:02:59]}  cxd4 {[%clk 0:02:56]} 4. Nxd4 {[%clk 0:02:59]}  Nf6 {[%clk 0:02:57]} 5. Nc3 {[%clk 0:02:59]}  a6 {[%clk 0:02:57]} 6. Qe2 {[%clk 0:02:56]}  g6 {[%clk 0:02:56]} 7. g3 {[%clk 0:02:53]}  Bg7 {[%clk 0:02:55]} 8. Bg2 {[%clk 0:02:54]}  O-O {[%clk 0:02:56]} 9. Bg5 {[%clk 0:02:51]}  Qa5 {[%clk 0:02:53]} 10. Bd2 {[%clk 0:02:43]}  Nc6 {[%clk 0:02:44]} 11. Nb3 {[%clk 0:02:41]}  Qc7 {[%clk 0:02:41]} 12. h3 {[%clk 0:02:36]}  b5 {[%clk 0:02:41]} 13. O-O {[%clk 0:02:34]}  Bb7 {[%clk 0:02:40]} 14. Rae1 {[%clk 0:02:27]}  e6 {[%clk 0:02:25]} 15. f4 {[%clk 0:02:26]}  b4 {[%clk 0:02:22]} 16. Nd1 {[%clk 0:02:18]}  a5 {[%clk 0:02:19]} 17. c3 {[%clk 0:02:11]}  Ba6 {[%clk 0:02:10]} 18. c4 {[%clk 0:02:10]}  a4 {[%clk 0:02:10]} 19. Nc1 {[%clk 0:02:10]}  Nd4 {[%clk 0:02:08]} 20. Qf2 {[%clk 0:02:01]}  Qxc4 {[%clk 0:01:54]} 21. b3 {[%clk 0:01:55]}  axb3 {[%clk 0:01:49]} 22. axb3 {[%clk 0:01:54]}  Nxb3 {[%clk 0:01:46]} 23. Ne3 {[%clk 0:01:49]}  Nxe4 {[%clk 0:01:31]} 24. Bxe4 {[%clk 0:01:23]}  Qxe4 {[%clk 0:01:29]} 25. Nxb3 {[%clk 0:01:23]}  Bxf1 {[%clk 0:01:29]} 26. Qxf1 {[%clk 0:01:20]}  Ra2 {[%clk 0:01:23]} 27. Nc4 {[%clk 0:01:14]}  Qc2 {[%clk 0:01:19]} 28. Nc1 {[%clk 0:01:10]}  b3 {[%clk 0:01:12]} 29. Rd1 {[%clk 0:00:27]}  Bd4+ {[%clk 0:01:01]} 30. Kh1 {[%clk 0:00:25]}  d5 {[%clk 0:01:00]} 31. Nd6 {[%clk 0:00:19]}  Ra1 {[%clk 0:00:53]} 32. Nb5 {[%clk 0:00:15]}  Qe4+ {[%clk 0:00:48]} 33. Qg2 {[%clk 0:00:14]}  b2 {[%clk 0:00:46]} 34. Qxe4 {[%clk 0:00:13]}  dxe4 {[%clk 0:00:47]} 35. Nxd4 {[%clk 0:00:11]}  b1=Q {[%clk 0:00:47]} 0-1


[Site "https://www.chess.com"]

[Event "Titled Tuesday Blitz August 08 Early 2023"]
[White "Bharath Subramaniyam H"]
[Black "Baches Garcia, Guillermo"]
[WhiteFideId "46634827"]
[BlackFideId "2209764"]
[WhiteElo "2824"]
[BlackElo "2464"]
[Result "1-0"]
[Round "1"]
[TimeControl "180+1"]
[Date "2023.08.08"]
[WhiteClock "0:00:34"]
[BlackClock "0:00:00"]
[Board "66"]

1. e4 {[%clk 0:02:59]}  d5 {[%clk 0:02:59]} 2. exd5 {[%clk 0:02:59]}  Qxd5 {[%clk 0:03:00]} 3. Nc3 {[%clk 0:02:59]}  Qa5 {[%clk 0:03:00]} 4. d4 {[%clk 0:03:00]}  Nf6 {[%clk 0:03:00]} 5. Nf3 {[%clk 0:03:00]}  Bf5 {[%clk 0:02:59]} 6. Bc4 {[%clk 0:03:00]}  e6 {[%clk 0:02:59]} 7. O-O {[%clk 0:02:59]}  c6 {[%clk 0:02:56]} 8. Re1 {[%clk 0:02:43]}  Be7 {[%clk 0:02:53]} 9. Bf4 {[%clk 0:02:37]}  Nbd7 {[%clk 0:02:48]} 10. Qe2 {[%clk 0:02:36]}  O-O {[%clk 0:02:45]} 11. h3 {[%clk 0:02:35]}  Nb6 {[%clk 0:02:40]} 12. Bb3 {[%clk 0:02:32]}  Nbd5 {[%clk 0:02:39]} 13. Bd2 {[%clk 0:02:28]}  Nxc3 {[%clk 0:02:29]} 14. Bxc3 {[%clk 0:02:20]}  Bb4 {[%clk 0:02:29]} 15. Bxb4 {[%clk 0:02:16]}  Qxb4 {[%clk 0:02:29]} 16. c3 {[%clk 0:02:16]}  Qd6 {[%clk 0:02:26]} 17. Ne5 {[%clk 0:02:16]}  Nd7 {[%clk 0:02:22]} 18. Rad1 {[%clk 0:02:11]}  Rad8 {[%clk 0:02:17]} 19. Qf3 {[%clk 0:02:04]}  Nxe5 {[%clk 0:02:11]} 20. Rxe5 {[%clk 0:02:02]}  Bg6 {[%clk 0:02:06]} 21. Rde1 {[%clk 0:02:02]}  Rfe8 {[%clk 0:02:00]} 22. h4 {[%clk 0:02:02]}  h6 {[%clk 0:01:57]} 23. Qg3 {[%clk 0:01:57]}  Bh7 {[%clk 0:01:45]} 24. h5 {[%clk 0:01:52]}  b6 {[%clk 0:01:38]} 25. Qe3 {[%clk 0:01:45]}  Re7 {[%clk 0:01:21]} 26. g4 {[%clk 0:01:44]}  Rde8 {[%clk 0:01:18]} 27. f4 {[%clk 0:01:41]}  Kf8 {[%clk 0:00:56]} 28. Qf2 {[%clk 0:01:34]}  f6 {[%clk 0:00:48]} 29. R5e2 {[%clk 0:01:34]}  c5 {[%clk 0:00:46]} 30. dxc5 {[%clk 0:01:33]}  bxc5 {[%clk 0:00:45]} 31. Rd1 {[%clk 0:01:28]}  Qc7 {[%clk 0:00:42]} 32. Ba4 {[%clk 0:01:23]}  Rb8 {[%clk 0:00:38]} 33. Rde1 {[%clk 0:01:23]}  Bg8 {[%clk 0:00:32]} 34. c4 {[%clk 0:01:19]}  Rd8 {[%clk 0:00:30]} 35. Rd2 {[%clk 0:01:08]}  Bf7 {[%clk 0:00:29]} 36. Red1 {[%clk 0:01:08]}  Rxd2 {[%clk 0:00:28]} 37. Rxd2 {[%clk 0:01:02]}  Be8 {[%clk 0:00:29]} 38. Bxe8 {[%clk 0:01:00]}  Rxe8 {[%clk 0:00:28]} 39. Qe3 {[%clk 0:00:59]}  e5 {[%clk 0:00:26]} 40. f5 {[%clk 0:00:55]}  Kg8 {[%clk 0:00:24]} 41. Rd5 {[%clk 0:00:54]}  Qb6 {[%clk 0:00:18]} 42. b3 {[%clk 0:00:54]}  Rc8 {[%clk 0:00:18]} 43. Kg2 {[%clk 0:00:54]}  Kh7 {[%clk 0:00:18]} 44. Qe4 {[%clk 0:00:53]}  Rc6 {[%clk 0:00:17]} 45. Rd7 {[%clk 0:00:51]}  Rd6 {[%clk 0:00:17]} 46. Rxd6 {[%clk 0:00:48]}  Qxd6 {[%clk 0:00:17]} 47. Qd5 {[%clk 0:00:48]}  Qb6 {[%clk 0:00:17]} 48. Kf3 {[%clk 0:00:46]}  Qb4 {[%clk 0:00:17]} 49. Qd3 {[%clk 0:00:44]}  a5 {[%clk 0:00:17]} 50. Ke4 {[%clk 0:00:43]}  a4 {[%clk 0:00:17]} 51. Kd5 {[%clk 0:00:43]}  axb3 {[%clk 0:00:17]} 52. axb3 {[%clk 0:00:44]}  Qb6 {[%clk 0:00:17]} 53. Qc3 {[%clk 0:00:40]}  Qc7 {[%clk 0:00:16]} 54. Qb2 {[%clk 0:00:35]}  Kg8 {[%clk 0:00:13]} 55. Qa3 {[%clk 0:00:36]}  Qb6 {[%clk 0:00:13]} 56. Qxc5 {[%clk 0:00:34]}  Qxb3 {[%clk 0:00:12]} 57. Ke6 {[%clk 0:00:34]}  Kh7 {[%clk 0:00:12]} 58. Qc8 {[%clk 0:00:34]}  e4 {[%clk 0:00:00]} 59. Kf7 {[%clk 0:00:34]} 1-0


[Site "https://www.chess.com"]

[Event "Titled Tuesday Blitz August 08 Early 2023"]
[White "slidingknight2775"]
[Black "JeRoma71"]
[WhiteElo "2463"]
[BlackElo "2824"]
[Result "0-1"]
[Round "1"]
[TimeControl "180+1"]
[Date "2023.08.08"]
[WhiteClock "0:00:04"]
[BlackClock "0:01:49"]
[Board "67"]

1. Nf3 {[%clk 0:03:00]}  g6 {[%clk 0:03:00]} 2. c4 {[%clk 0:03:00]}  Bg7 {[%clk 0:03:01]} 3. Nc3 {[%clk 0:03:00]}  c5 {[%clk 0:03:01]} 4. g3 {[%clk 0:03:00]}  Nc6 {[%clk 0:03:01]} 5. Bg2 {[%clk 0:03:00]}  e6 {[%clk 0:03:01]} 6. O-O {[%clk 0:02:58]}  Nge7 {[%clk 0:03:01]} 7. a3 {[%clk 0:02:58]}  O-O {[%clk 0:03:00]} 8. b4 {[%clk 0:02:55]}  d6 {[%clk 0:03:00]} 9. Rb1 {[%clk 0:02:53]}  b6 {[%clk 0:03:00]} 10. Qc2 {[%clk 0:02:42]}  Bb7 {[%clk 0:02:59]} 11. d3 {[%clk 0:02:40]}  Qd7 {[%clk 0:02:59]} 12. Bd2 {[%clk 0:02:35]}  h6 {[%clk 0:02:58]} 13. Qc1 {[%clk 0:02:34]}  g5 {[%clk 0:02:58]} 14. h4 {[%clk 0:02:26]}  g4 {[%clk 0:02:58]} 15. Nh2 {[%clk 0:02:24]}  h5 {[%clk 0:02:58]} 16. Bh6 {[%clk 0:02:19]}  f6 {[%clk 0:02:48]} 17. Bxg7 {[%clk 0:02:17]}  Kxg7 {[%clk 0:02:49]} 18. e3 {[%clk 0:02:13]}  Ne5 {[%clk 0:02:46]} 19. Qd1 {[%clk 0:01:46]}  Bxg2 {[%clk 0:02:42]} 20. Kxg2 {[%clk 0:01:47]}  f5 {[%clk 0:02:42]} 21. Qe2 {[%clk 0:01:39]}  Rac8 {[%clk 0:02:40]} 22. Kg1 {[%clk 0:01:34]}  N7g6 {[%clk 0:02:39]} 23. f4 {[%clk 0:01:27]}  gxf3 {[%clk 0:02:17]} 24. Nxf3 {[%clk 0:01:27]}  Ng4 {[%clk 0:02:17]} 25. Rbe1 {[%clk 0:01:21]}  cxb4 {[%clk 0:02:11]} 26. axb4 {[%clk 0:01:20]}  d5 {[%clk 0:02:11]} 27. Ng5 {[%clk 0:00:55]}  d4 {[%clk 0:02:11]} 28. Nd1 {[%clk 0:00:50]}  Rce8 {[%clk 0:02:08]} 29. e4 {[%clk 0:00:41]}  f4 {[%clk 0:02:08]} 30. Nf2 {[%clk 0:00:18]}  e5 {[%clk 0:02:08]} 31. Nxg4 {[%clk 0:00:16]}  hxg4 {[%clk 0:02:08]} 32. Qg2 {[%clk 0:00:16]}  f3 {[%clk 0:02:08]} 33. Qd2 {[%clk 0:00:16]}  Qe7 {[%clk 0:02:00]} 34. Ra1 {[%clk 0:00:14]}  Rh8 {[%clk 0:01:56]} 35. Rf2 {[%clk 0:00:14]}  Nxh4 {[%clk 0:01:54]} 36. gxh4 {[%clk 0:00:15]}  Rxh4 {[%clk 0:01:55]} 37. Nxf3 {[%clk 0:00:06]}  gxf3 {[%clk 0:01:50]} 38. Rxf3 {[%clk 0:00:07]}  Rg4+ {[%clk 0:01:50]} 39. Kf1 {[%clk 0:00:06]}  Rh8 {[%clk 0:01:49]} 40. Ke2 {[%clk 0:00:03]}  Rh2+ {[%clk 0:01:49]} 41. Rf2 {[%clk 0:00:04]}  Rxf2+ {[%clk 0:01:49]} 42. Kxf2 {[%clk 0:00:05]}  Qh4+ {[%clk 0:01:50]} 43. Kf1 {[%clk 0:00:03]}  Qh1+ {[%clk 0:01:48]} 44. Kf2 {[%clk 0:00:03]}  Rg2+ {[%clk 0:01:49]} 45. Kf3 {[%clk 0:00:04]}  Qh3# {[%clk 0:01:49]} 0-1


[Site "https://www.chess.com"]

[Event "Titled Tuesday Blitz August 08 Early 2023"]
[White "Tristan, Leonardo"]
[Black "Lima, Kleyton Alcantara"]
[WhiteFideId "113816"]
[BlackFideId "22718397"]
[WhiteElo "2823"]
[BlackElo "2460"]
[Result "1-0"]
[Round "1"]
[TimeControl "180+1"]
[Date "2023.08.08"]
[WhiteClock "0:00:40"]
[BlackClock "0:00:16"]
[Board "68"]

1. d4 {[%clk 0:03:00]}  Nf6 {[%clk 0:02:59]} 2. Nf3 {[%clk 0:03:00]}  g6 {[%clk 0:02:59]} 3. Bf4 {[%clk 0:03:01]}  Bg7 {[%clk 0:02:59]} 4. e3 {[%clk 0:03:01]}  d6 {[%clk 0:02:59]} 5. Be2 {[%clk 0:03:02]}  O-O {[%clk 0:02:57]} 6. O-O {[%clk 0:03:02]}  Nbd7 {[%clk 0:02:58]} 7. h3 {[%clk 0:03:01]}  b6 {[%clk 0:02:58]} 8. Bh2 {[%clk 0:03:01]}  Bb7 {[%clk 0:02:57]} 9. a4 {[%clk 0:03:01]}  a6 {[%clk 0:02:57]} 10. Nbd2 {[%clk 0:03:02]}  Ne4 {[%clk 0:02:57]} 11. Nxe4 {[%clk 0:02:57]}  Bxe4 {[%clk 0:02:58]} 12. Nd2 {[%clk 0:02:47]}  Bb7 {[%clk 0:02:56]} 13. Bf3 {[%clk 0:02:45]}  Qc8 {[%clk 0:02:57]} 14. a5 {[%clk 0:02:43]}  b5 {[%clk 0:02:56]} 15. c4 {[%clk 0:02:43]}  c5 {[%clk 0:02:30]} 16. Rc1 {[%clk 0:02:26]}  b4 {[%clk 0:02:25]} 17. Qa4 {[%clk 0:02:19]}  cxd4 {[%clk 0:02:17]} 18. exd4 {[%clk 0:01:48]}  Bxd4 {[%clk 0:02:16]} 19. Qxb4 {[%clk 0:01:46]}  Rb8 {[%clk 0:01:57]} 20. Qa3 {[%clk 0:01:24]}  Bxf3 {[%clk 0:01:34]} 21. Qxf3 {[%clk 0:01:25]}  Bxb2 {[%clk 0:01:34]} 22. Rc2 {[%clk 0:01:25]}  Bf6 {[%clk 0:01:28]} 23. Ne4 {[%clk 0:01:25]}  Bg7 {[%clk 0:01:21]} 24. c5 {[%clk 0:01:19]}  Ne5 {[%clk 0:01:12]} 25. Qe2 {[%clk 0:01:17]}  dxc5 {[%clk 0:01:08]} 26. Rxc5 {[%clk 0:01:16]}  Qf5 {[%clk 0:01:02]} 27. f4 {[%clk 0:01:05]}  Nf3+ {[%clk 0:00:44]} 28. Kh1 {[%clk 0:01:05]}  Nd4 {[%clk 0:00:37]} 29. Qd3 {[%clk 0:00:48]}  Qe6 {[%clk 0:00:34]} 30. f5 {[%clk 0:00:43]}  gxf5 {[%clk 0:00:34]} 31. Bxb8 {[%clk 0:00:40]}  fxe4 {[%clk 0:00:29]} 32. Qg3 {[%clk 0:00:41]}  Rxb8 {[%clk 0:00:16]} 33. Qxb8+ {[%clk 0:00:40]} 1-0


[Site "https://www.chess.com"]

[Event "Titled Tuesday Blitz August 08 Early 2023"]
[White "Reprintsev, Alexander"]
[Black "Mitrabha, Guha"]
[WhiteFideId "14100541"]
[BlackFideId "5057000"]
[WhiteElo "2459"]
[BlackElo "2817"]
[Result "0-1"]
[Round "1"]
[TimeControl "180+1"]
[Date "2023.08.08"]
[WhiteClock "0:00:00"]
[BlackClock "0:00:27"]
[Board "71"]

1. h3 {[%clk 0:02:51]}  d5 {[%clk 0:02:59]} 2. g4 {[%clk 0:02:46]}  e5 {[%clk 0:02:59]} 3. Bg2 {[%clk 0:02:46]}  c6 {[%clk 0:03:00]} 4. d3 {[%clk 0:02:45]}  h5 {[%clk 0:02:59]} 5. g5 {[%clk 0:02:44]}  Bd6 {[%clk 0:02:59]} 6. c4 {[%clk 0:02:31]}  Ne7 {[%clk 0:02:58]} 7. cxd5 {[%clk 0:02:30]}  cxd5 {[%clk 0:02:49]} 8. Nc3 {[%clk 0:02:29]}  Be6 {[%clk 0:02:43]} 9. Qb3 {[%clk 0:02:26]}  Nbc6 {[%clk 0:02:32]} 10. Nb5 {[%clk 0:02:09]}  Bb4+ {[%clk 0:01:58]} 11. Kf1 {[%clk 0:02:00]}  O-O {[%clk 0:01:50]} 12. a3 {[%clk 0:01:45]}  Ba5 {[%clk 0:01:41]} 13. Qa4 {[%clk 0:01:33]}  d4 {[%clk 0:01:18]} 14. b4 {[%clk 0:01:30]}  Bb6 {[%clk 0:01:16]} 15. f4 {[%clk 0:00:35]}  a6 {[%clk 0:01:02]} 16. fxe5 {[%clk 0:00:35]}  axb5 {[%clk 0:00:50]} 17. Qxb5 {[%clk 0:00:33]}  Nd5 {[%clk 0:00:50]} 18. Bxd5 {[%clk 0:00:26]}  Bxd5 {[%clk 0:00:37]} 19. Nf3 {[%clk 0:00:25]}  Nxe5 {[%clk 0:00:33]} 20. Nxe5 {[%clk 0:00:16]}  Bxh1 {[%clk 0:00:26]} 21. Bf4 {[%clk 0:00:14]}  Bc7 {[%clk 0:00:26]} 22. Kg1 {[%clk 0:00:11]}  Bc6 {[%clk 0:00:26]} 23. Qc4 {[%clk 0:00:10]}  Bxe5 {[%clk 0:00:26]} 24. Bxe5 {[%clk 0:00:10]}  Qd7 {[%clk 0:00:26]} 25. Kh2 {[%clk 0:00:06]}  Rfe8 {[%clk 0:00:26]} 26. Qxd4 {[%clk 0:00:04]}  Qxd4 {[%clk 0:00:25]} 27. Bxd4 {[%clk 0:00:04]}  Rxe2+ {[%clk 0:00:26]} 28. Kg3 {[%clk 0:00:05]}  Rd8 {[%clk 0:00:26]} 29. Bc5 {[%clk 0:00:00]}  Rxd3+ {[%clk 0:00:27]} 0-1


[Site "https://www.chess.com"]

[Event "Titled Tuesday Blitz August 08 Early 2023"]
[White "Atakhan, Abtin"]
[Black "Shashikant, Kutwal"]
[WhiteFideId "22502203"]
[BlackFideId "5006520"]
[WhiteElo "2815"]
[BlackElo "2456"]
[Result "1-0"]
[Round "1"]
[TimeControl "180+1"]
[Date "2023.08.08"]
[WhiteClock "0:01:21"]
[BlackClock "0:00:03"]
[Board "74"]

1. Nf3 {[%clk 0:03:00]}  Nf6 {[%clk 0:02:58]} 2. g3 {[%clk 0:03:00]}  g6 {[%clk 0:02:57]} 3. Bg2 {[%clk 0:02:59]}  Bg7 {[%clk 0:02:57]} 4. c4 {[%clk 0:02:59]}  O-O {[%clk 0:02:57]} 5. O-O {[%clk 0:02:59]}  d6 {[%clk 0:02:57]} 6. Nc3 {[%clk 0:02:58]}  Nc6 {[%clk 0:02:56]} 7. d3 {[%clk 0:02:50]}  e5 {[%clk 0:02:55]} 8. Rb1 {[%clk 0:02:51]}  a5 {[%clk 0:02:53]} 9. a3 {[%clk 0:02:51]}  Re8 {[%clk 0:02:47]} 10. Bg5 {[%clk 0:02:47]}  h6 {[%clk 0:02:45]} 11. Bxf6 {[%clk 0:02:47]}  Bxf6 {[%clk 0:02:45]} 12. b4 {[%clk 0:02:48]}  axb4 {[%clk 0:02:44]} 13. axb4 {[%clk 0:02:48]}  Bg7 {[%clk 0:02:39]} 14. b5 {[%clk 0:02:48]}  Nd4 {[%clk 0:02:22]} 15. Nd2 {[%clk 0:02:40]}  Ra3 {[%clk 0:01:56]} 16. Nd5 {[%clk 0:02:34]}  Bg4 {[%clk 0:01:47]} 17. Re1 {[%clk 0:02:33]}  c6 {[%clk 0:01:38]} 18. bxc6 {[%clk 0:02:29]}  bxc6 {[%clk 0:01:37]} 19. Nb4 {[%clk 0:02:30]}  Qc8 {[%clk 0:01:18]} 20. Ne4 {[%clk 0:02:22]}  Qc7 {[%clk 0:01:01]} 21. h3 {[%clk 0:02:20]}  Bd7 {[%clk 0:00:56]} 22. c5 {[%clk 0:02:16]}  d5 {[%clk 0:00:52]} 23. Nd6 {[%clk 0:02:17]}  Rea8 {[%clk 0:00:47]} 24. e3 {[%clk 0:02:10]}  Ne6 {[%clk 0:00:44]} 25. Qc1 {[%clk 0:01:55]}  Qa7 {[%clk 0:00:42]} 26. Nxd5 {[%clk 0:01:29]}  cxd5 {[%clk 0:00:38]} 27. Rb7 {[%clk 0:01:29]}  Qxc5 {[%clk 0:00:35]} 28. Rxd7 {[%clk 0:01:28]}  Qxc1 {[%clk 0:00:31]} 29. Rxc1 {[%clk 0:01:29]}  Bf8 {[%clk 0:00:16]} 30. Nxf7 {[%clk 0:01:27]}  Rxd3 {[%clk 0:00:16]} 31. Rxd5 {[%clk 0:01:22]}  Rd8 {[%clk 0:00:03]} 32. Nxd8 {[%clk 0:01:21]} 1-0


[Site "https://www.chess.com"]

[Event "Titled Tuesday Blitz August 08 Early 2023"]
[White "Rakhimgaliyev, Yerlan"]
[Black "Riehle, Marco"]
[WhiteFideId "13705148"]
[BlackFideId "12904392"]
[WhiteElo "2454"]
[BlackElo "2814"]
[Result "0-1"]
[Round "1"]
[TimeControl "180+1"]
[Date "2023.08.08"]
[WhiteClock "0:00:14"]
[BlackClock "0:01:32"]
[Board "75"]

1. e4 {[%clk 0:02:59]}  e5 {[%clk 0:03:00]} 2. Nf3 {[%clk 0:02:59]}  Nf6 {[%clk 0:03:00]} 3. d4 {[%clk 0:02:57]}  Nxe4 {[%clk 0:03:00]} 4. Bd3 {[%clk 0:02:57]}  Nc6 {[%clk 0:03:00]} 5. Bxe4 {[%clk 0:02:39]}  d5 {[%clk 0:03:00]} 6. Nxe5 {[%clk 0:02:40]}  Nxe5 {[%clk 0:02:58]} 7. dxe5 {[%clk 0:02:41]}  dxe4 {[%clk 0:02:58]} 8. Qxd8+ {[%clk 0:02:41]}  Kxd8 {[%clk 0:02:58]} 9. Nc3 {[%clk 0:02:41]}  Bb4 {[%clk 0:02:58]} 10. Bd2 {[%clk 0:02:40]}  Bxc3 {[%clk 0:02:59]} 11. Bxc3 {[%clk 0:02:41]}  Ke7 {[%clk 0:02:59]} 12. Ke2 {[%clk 0:02:40]}  Bf5 {[%clk 0:02:53]} 13. h3 {[%clk 0:02:34]}  h5 {[%clk 0:02:52]} 14. Ke3 {[%clk 0:02:32]}  Ke6 {[%clk 0:02:47]} 15. g4 {[%clk 0:02:04]}  hxg4 {[%clk 0:02:45]} 16. hxg4 {[%clk 0:02:05]}  Bxg4 {[%clk 0:02:45]} 17. Kxe4 {[%clk 0:02:02]}  Bf5+ {[%clk 0:02:44]} 18. Kf4 {[%clk 0:01:54]}  Bxc2 {[%clk 0:02:41]} 19. Rac1 {[%clk 0:01:54]}  Rxh1 {[%clk 0:02:36]} 20. Rxh1 {[%clk 0:01:55]}  Rd8 {[%clk 0:02:33]} 21. Rg1 {[%clk 0:01:46]}  Bg6 {[%clk 0:02:32]} 22. f3 {[%clk 0:01:37]}  b6 {[%clk 0:02:31]} 23. a4 {[%clk 0:01:31]}  c5 {[%clk 0:02:30]} 24. Ke3 {[%clk 0:01:22]}  a6 {[%clk 0:02:25]} 25. Rc1 {[%clk 0:01:15]}  Rd3+ {[%clk 0:02:21]} 26. Ke2 {[%clk 0:01:15]}  Rd5 {[%clk 0:02:21]} 27. b4 {[%clk 0:01:11]}  c4 {[%clk 0:02:19]} 28. a5 {[%clk 0:01:08]}  b5 {[%clk 0:02:18]} 29. Rd1 {[%clk 0:01:08]}  Bd3+ {[%clk 0:02:17]} 30. Ke3 {[%clk 0:01:07]}  Rd8 {[%clk 0:02:15]} 31. Rg1 {[%clk 0:00:59]}  Bg6 {[%clk 0:02:14]} 32. Ke2 {[%clk 0:00:50]}  Rh8 {[%clk 0:02:13]} 33. Ke3 {[%clk 0:00:36]}  Rh2 {[%clk 0:02:11]} 34. Rg4 {[%clk 0:00:36]}  Rc2 {[%clk 0:02:08]} 35. Be1 {[%clk 0:00:33]}  Kxe5 {[%clk 0:02:05]} 36. Rg5+ {[%clk 0:00:32]}  Kd6 {[%clk 0:01:50]} 37. Rc5 {[%clk 0:00:33]}  Bd3 {[%clk 0:01:46]} 38. Bg3+ {[%clk 0:00:33]}  Ke6 {[%clk 0:01:42]} 39. Kd4 {[%clk 0:00:32]}  Rg2 {[%clk 0:01:37]} 40. Rc6+ {[%clk 0:00:32]}  Kf5 {[%clk 0:01:37]} 41. Bc7 {[%clk 0:00:32]}  Bf1 {[%clk 0:01:35]} 42. Rxa6 {[%clk 0:00:31]}  Rd2+ {[%clk 0:01:36]} 43. Kc5 {[%clk 0:00:29]}  c3 {[%clk 0:01:35]} 44. Rc6 {[%clk 0:00:22]}  c2 {[%clk 0:01:35]} 45. Kb6 {[%clk 0:00:18]}  Bc4 {[%clk 0:01:35]} 46. a6 {[%clk 0:00:18]}  c1=Q {[%clk 0:01:34]} 47. a7 {[%clk 0:00:19]}  Ra2 {[%clk 0:01:33]} 48. Kb7 {[%clk 0:00:14]}  Bd5 {[%clk 0:01:32]} 0-1


[Site "https://www.chess.com"]

[Event "Titled Tuesday Blitz August 08 Early 2023"]
[White "Mayank Chakraborty"]
[Black "Rios Escobar, Adan"]
[WhiteFideId "25659766"]
[BlackFideId "3403645"]
[WhiteElo "2814"]
[BlackElo "2452"]
[Result "1-0"]
[Round "1"]
[TimeControl "180+1"]
[Date "2023.08.08"]
[WhiteClock "0:00:20"]
[BlackClock "0:00:00"]
[Board "76"]

1. e4 {[%clk 0:02:58]}  c5 {[%clk 0:02:54]} 2. Nf3 {[%clk 0:02:57]}  d6 {[%clk 0:02:52]} 3. d4 {[%clk 0:02:57]}  cxd4 {[%clk 0:02:53]} 4. Nxd4 {[%clk 0:02:58]}  Nf6 {[%clk 0:02:53]} 5. Nc3 {[%clk 0:02:57]}  a6 {[%clk 0:02:54]} 6. f3 {[%clk 0:02:57]}  e5 {[%clk 0:02:48]} 7. Nb3 {[%clk 0:02:57]}  Be7 {[%clk 0:02:48]} 8. Be3 {[%clk 0:02:56]}  Be6 {[%clk 0:02:48]} 9. Qd2 {[%clk 0:02:56]}  h5 {[%clk 0:02:49]} 10. Nd5 {[%clk 0:02:53]}  Nxd5 {[%clk 0:02:46]} 11. exd5 {[%clk 0:02:53]}  Bf5 {[%clk 0:02:46]} 12. c4 {[%clk 0:02:48]}  a5 {[%clk 0:02:35]} 13. Be2 {[%clk 0:02:24]}  a4 {[%clk 0:02:28]} 14. Nc1 {[%clk 0:02:24]}  Bh4+ {[%clk 0:02:25]} 15. g3 {[%clk 0:02:20]}  Be7 {[%clk 0:02:20]} 16. Nd3 {[%clk 0:02:15]}  Nd7 {[%clk 0:02:19]} 17. O-O {[%clk 0:02:12]}  O-O {[%clk 0:02:11]} 18. b4 {[%clk 0:01:46]}  Bg6 {[%clk 0:01:21]} 19. f4 {[%clk 0:01:33]}  f5 {[%clk 0:01:17]} 20. fxe5 {[%clk 0:01:28]}  dxe5 {[%clk 0:00:58]} 21. c5 {[%clk 0:01:18]}  h4 {[%clk 0:00:57]} 22. Rad1 {[%clk 0:01:02]}  hxg3 {[%clk 0:00:56]} 23. hxg3 {[%clk 0:01:02]}  Bf6 {[%clk 0:00:49]} 24. c6 {[%clk 0:00:58]}  bxc6 {[%clk 0:00:46]} 25. dxc6 {[%clk 0:00:59]}  Nb6 {[%clk 0:00:42]} 26. Nxe5 {[%clk 0:00:43]}  Bxe5 {[%clk 0:00:30]} 27. Qxd8 {[%clk 0:00:41]}  Raxd8 {[%clk 0:00:28]} 28. Bxb6 {[%clk 0:00:41]}  Rc8 {[%clk 0:00:20]} 29. b5 {[%clk 0:00:34]}  Bxg3 {[%clk 0:00:15]} 30. Bc4+ {[%clk 0:00:34]}  Kh7 {[%clk 0:00:14]} 31. Kg2 {[%clk 0:00:28]}  Bh5 {[%clk 0:00:13]} 32. Rh1 {[%clk 0:00:23]}  Kg6 {[%clk 0:00:11]} 33. Kxg3 {[%clk 0:00:20]}  f4+ {[%clk 0:00:11]} 34. Kf2 {[%clk 0:00:20]}  Bxd1 {[%clk 0:00:12]} 35. Rxd1 {[%clk 0:00:20]}  Kf5 {[%clk 0:00:06]} 36. Rd5+ {[%clk 0:00:17]}  Ke4 {[%clk 0:00:05]} 37. Rd4+ {[%clk 0:00:18]}  Ke5 {[%clk 0:00:04]} 38. Rd7 {[%clk 0:00:17]}  g5 {[%clk 0:00:02]} 39. Bc5 {[%clk 0:00:18]}  Rh8 {[%clk 0:00:02]} 40. Bd4+ {[%clk 0:00:18]}  Ke4 {[%clk 0:00:02]} 41. Bxh8 {[%clk 0:00:19]}  Rxh8 {[%clk 0:00:00]} 42. c7 {[%clk 0:00:20]} 1-0


[Site "https://www.chess.com"]

[Event "Titled Tuesday Blitz August 08 Early 2023"]
[White "Ashraf, Artin"]
[Black "Kassimov, Baurzhan"]
[WhiteFideId "22514805"]
[BlackFideId "13704800"]
[WhiteElo "2810"]
[BlackElo "2449"]
[Result "1-0"]
[Round "1"]
[TimeControl "180+1"]
[Date "2023.08.08"]
[WhiteClock "0:00:03"]
[BlackClock "0:00:12"]
[Board "78"]

1. e4 {[%clk 0:02:57]}  e5 {[%clk 0:02:59]} 2. Nf3 {[%clk 0:02:56]}  Nc6 {[%clk 0:02:59]} 3. Bb5 {[%clk 0:02:57]}  a6 {[%clk 0:02:58]} 4. Ba4 {[%clk 0:02:57]}  Nge7 {[%clk 0:02:58]} 5. O-O {[%clk 0:02:50]}  Ng6 {[%clk 0:02:57]} 6. Re1 {[%clk 0:02:49]}  d6 {[%clk 0:02:56]} 7. c3 {[%clk 0:02:48]}  Bd7 {[%clk 0:02:55]} 8. d4 {[%clk 0:02:47]}  Be7 {[%clk 0:02:55]} 9. d5 {[%clk 0:02:38]}  Nb8 {[%clk 0:02:54]} 10. c4 {[%clk 0:02:37]}  b5 {[%clk 0:02:47]} 11. Bb3 {[%clk 0:02:28]}  O-O {[%clk 0:02:45]} 12. Nc3 {[%clk 0:02:20]}  b4 {[%clk 0:02:42]} 13. Nb1 {[%clk 0:02:19]}  c5 {[%clk 0:02:42]} 14. a3 {[%clk 0:02:01]}  a5 {[%clk 0:02:42]} 15. axb4 {[%clk 0:02:00]}  cxb4 {[%clk 0:02:43]} 16. c5 {[%clk 0:01:59]}  dxc5 {[%clk 0:02:40]} 17. Nbd2 {[%clk 0:01:53]}  Bb5 {[%clk 0:02:35]} 18. Bc4 {[%clk 0:01:45]}  Qd7 {[%clk 0:02:20]} 19. Qe2 {[%clk 0:01:39]}  Bxc4 {[%clk 0:02:10]} 20. Nxc4 {[%clk 0:01:39]}  Qc7 {[%clk 0:02:11]} 21. Rd1 {[%clk 0:00:50]}  Rd8 {[%clk 0:02:07]} 22. b3 {[%clk 0:00:37]}  f6 {[%clk 0:01:48]} 23. h4 {[%clk 0:00:36]}  Bd6 {[%clk 0:01:31]} 24. h5 {[%clk 0:00:31]}  Nf4 {[%clk 0:01:20]} 25. Bxf4 {[%clk 0:00:28]}  exf4 {[%clk 0:01:21]} 26. Nh4 {[%clk 0:00:28]}  Nd7 {[%clk 0:01:11]} 27. Nf5 {[%clk 0:00:24]}  Be5 {[%clk 0:01:04]} 28. Qg4 {[%clk 0:00:15]}  Nf8 {[%clk 0:01:04]} 29. d6 {[%clk 0:00:14]}  Qd7 {[%clk 0:01:02]} 30. Nb6 {[%clk 0:00:11]}  Qb7 {[%clk 0:01:02]} 31. Nxa8 {[%clk 0:00:09]}  Bxa1 {[%clk 0:01:00]} 32. Nc7 {[%clk 0:00:09]}  g6 {[%clk 0:00:58]} 33. Rxa1 {[%clk 0:00:06]}  Qxe4 {[%clk 0:00:51]} 34. Ne7+ {[%clk 0:00:05]}  Kg7 {[%clk 0:00:44]} 35. Rd1 {[%clk 0:00:05]}  Qe5 {[%clk 0:00:39]} 36. hxg6 {[%clk 0:00:04]}  hxg6 {[%clk 0:00:39]} 37. Nc6 {[%clk 0:00:03]}  f5 {[%clk 0:00:12]} 38. Qf3 {[%clk 0:00:03]} 1-0


[Site "https://www.chess.com"]